bitfinex/quotes_ETHUSD_20240730
["timestamp","ask_amount","ask_price","bid_price","bid_amount"]
[1722380513133,1.91620547,3287.8,3287.7,3.04164]
[1722380513321,1.91597376,3287.8,3287.7,3.04157]
[1722380513555,1.91597376,3287.9,3287.7,6.614247]
[1722380513752,1.91597376,3287.8,3287.7,6.614247]
[1722380514501,1.91597376,3287.8,3287.7,3.572667]
[1722380515258,4.10912,3288.3,3287.8,3.0415]
[1722380515467,2.23553254,3288.1,3287.8,3.0415]
[1722380515961,2.23553254,3288.0,3287.8,3.0415]
[1722380516701,2.23553254,3288.1,3287.8,3.0415]
[1722380517456,2.23553254,3288.1,3287.9,3.04143]
[1722380518073,2.23553254,3288.1,3287.8,3.0415]
[1722380518074,2.23553254,3288.2,3288.0,5.989953]
[1722380518257,2.23553254,3288.3,3288.0,2.3403]
[1722380518456,3.04091,3288.5,3288.0,2.3403]
[1722380518657,2.23613647,3288.2,3288.0,2.3403]
[1722380518858,3.04099,3288.4,3288.0,2.3403]
[1722380519069,2.23619005,3288.2,3288.0,2.3403]
[1722380519563,3.04099,3288.4,3288.0,2.3403]
[1722380519564,2.23619005,3288.1,3288.0,2.3403]
[1722380520155,2.23619005,3288.1,3287.8,5.51424]
[1722380520693,2.23619005,3288.1,3287.8,8.55572]
[1722380520894,2.23619005,3288.1,3287.9,0.85310414]
[1722380521057,2.23619005,3288.1,3287.8,5.51418]
[1722380521058,3.04113,3288.3,3287.8,5.51418]
[1722380521412,2.2361152,3288.1,3287.8,2.4727]
[1722380522813,5.2774352,3288.1,3287.5,5.54055]
[1722380522977,1.91660413,3287.8,3287.5,5.54055]
[1722380523181,1.91660413,3287.8,3287.6,3.04172]
[1722380523496,1.91660413,3287.8,3287.7,0.554052]
[1722380523681,1.91660413,3287.8,3287.7,3.595692]
[1722380524198,1.91657543,3287.8,3287.7,3.595692]
[1722380525299,1.91657543,3287.9,3287.8,3.04154]
[1722380525703,2.23600467,3288.2,3287.9,3.04144]
[1722380526161,2.23600467,3288.1,3287.7,8.924832]
[1722380526359,1.91639243,3287.8,3287.7,8.924832]
[1722380526599,1.91639243,3287.9,3287.7,5.883232]
[1722380526910,1.91639243,3287.9,3287.7,5.32918]
[1722380527108,1.91639243,3287.9,3287.8,3.04154]
[1722380527313,3.04108,3288.3,3287.8,3.04154]
[1722380527518,1.91632437,3287.9,3287.8,3.04154]
[1722380527679,1.91632437,3287.9,3287.8,3.878627]
[1722380528008,1.91632437,3287.9,3287.8,0.837087]
[1722380528635,1.91632437,3287.9,3287.8,3.878627]
[1722380531138,4.109,3288.4,3287.9,3.04142]
[1722380531429,4.109,3288.4,3287.8,3.878627]
[1722380531430,2.23551909,3288.3,3287.8,3.878627]
[1722380531583,1.91614958,3287.9,3287.8,3.878627]
[1722380532041,1.91614958,3288.0,3287.8,3.878627]
[1722380532281,1.91614958,3287.9,3287.8,3.04154]
[1722380532971,1.9160452,3287.9,3287.8,3.04154]
[1722380533533,1.9160452,3288.0,3287.9,3.04145]
[1722380533844,3.04092,3288.5,3287.9,3.878518]
[1722380534047,1.91595233,3288.1,3287.9,3.878518]
[1722380534458,1.91595233,3288.2,3287.9,3.878518]
[1722380534811,1.91595233,3288.2,3288.0,3.0413]
[1722380535097,1.91595233,3288.5,3288.3,3.04108]
[1722380535251,1.91595233,3288.5,3288.4,0.304108]
[1722380535599,1.91595233,3288.7,3288.3,3.04106]
[1722380535755,1.91595233,3288.6,3288.2,3.04115]
[1722380535954,1.59583911,3288.3,3288.2,3.04115]
[1722380536249,1.59583911,3288.3,3288.2,4.01063883]
[1722380536449,1.91595233,3288.5,3288.2,4.01063883]
[1722380536680,1.91595233,3288.6,3288.2,4.01063883]
[1722380536985,1.59549887,3288.3,3288.2,4.01063883]
[1722380537200,1.91461846,3288.6,3288.3,3.04106]
[1722380537491,1.91461846,3288.6,3288.3,3.99460088]
[1722380538208,1.91461846,3288.6,3287.9,5.31285]
[1722380538209,3.04093,3288.5,3287.9,5.31285]
[1722380538386,1.91442118,3288.3,3288.0,3.0413]
[1722380538695,1.59531544,3288.3,3288.2,3.04117]
[1722380538873,1.59531544,3288.3,3288.2,5.961917]
[1722380539249,1.91442118,3288.7,3288.3,3.04108]
[1722380539451,1.91442118,3288.6,3288.3,3.04108]
[1722380539654,1.86442118,3288.6,3288.3,3.04108]
[1722380540388,3.30172154,3288.9,3288.4,3.04099]
[1722380540389,1.068,3288.9,3288.4,3.04099]
[1722380541390,1.068,3288.9,3288.2,5.35367]
[1722380541391,2.23272046,3289.0,3288.6,3.04079]
[1722380541595,1.068,3289.1,3288.6,3.04079]
[1722380541802,6.34107046,3289.1,3288.6,3.04079]
[1722380542105,4.10835,3289.1,3288.6,5.45109]
[1722380544194,1.59412771,3288.7,3288.6,5.45103]
[1722380544748,1.59412771,3288.7,3288.6,9.341023]
[1722380544949,1.59412771,3289.1,3288.8,2.2557]
[1722380545502,1.068,3289.6,3289.1,3.04034]
[1722380545655,1.91191952,3289.4,3289.1,3.04034]
[1722380545851,1.91191952,3289.4,3288.8,2.2557]
[1722380545852,1.91191952,3289.3,3288.8,2.2557]
[1722380546050,1.59339868,3289.0,3288.8,8.34528288]
[1722380546654,1.068,3289.2,3288.8,8.34528288]
[1722380546899,1.59312013,3289.0,3288.8,8.34528288]
[1722380547195,1.59312013,3289.1,3289.0,3.04043]
[1722380547437,1.59312013,3289.1,3289.0,4.17900529]
[1722380547640,1.59312013,3289.2,3289.0,4.17900529]
[1722380547807,1.59312013,3289.1,3289.0,4.17900529]
[1722380548010,1.59312013,3289.1,3289.0,1.13857529]
[1722380549212,1.59312013,3289.2,3289.0,4.17900529]
[1722380550003,4.10802,3289.5,3289.0,4.17900529]
[1722380550203,1.59242213,3289.2,3289.1,0.41790053]
[1722380550542,1.068,3289.3,3288.8,8.34528288]
[1722380550757,1.59229795,3289.1,3288.9,3.04052]
[1722380551141,1.59229795,3289.2,3288.9,3.04052]
[1722380551363,1.59229795,3289.2,3289.0,0.529622]
[1722380553137,1.59229795,3289.3,3289.0,0.529622]
[1722380553339,1.59178157,3289.3,3289.0,0.529622]
[1722380553611,1.59178157,3289.2,3289.1,0.33861601]
[1722380554258,1.59178157,3289.3,3289.1,0.33861601]
[1722380554447,1.59178157,3289.3,3289.0,0.729622]
[1722380555399,1.59178157,3289.3,3289.0,3.770052]
[1722380555570,1.59178157,3289.3,3289.1,6.08057]
[1722380555771,1.59178157,3289.3,3289.2,2.4381]
[1722380556096,1.59178157,3289.4,3289.2,5.47829]
[1722380556459,8.6035969,3289.7,3289.2,9.1392712]
[1722380556662,1.59176694,3289.4,3289.3,3.04013]
[1722380557056,1.59174918,3289.4,3289.2,3.0588912]
[1722380557406,1.59174918,3289.4,3289.3,0.60991412]
[1722380557699,1.59174918,3289.4,3289.3,3.65007412]
[1722380557904,1.59174918,3289.5,3289.3,3.65007412]
[1722380558688,1.59174918,3289.6,3289.3,3.65007412]
[1722380558918,1.59143672,3289.6,3289.3,3.65007412]
[1722380559674,1.59143672,3289.6,3289.3,0.60991412]
[1722380560014,1.59134021,3289.5,3289.3,3.65005412]
[1722380560384,1.59134021,3289.5,3289.3,0.60991412]
[1722380560581,1.59134021,3289.5,3289.2,5.47833]
[1722380562517,1.59134021,3289.5,3289.3,3.04013]
[1722380563219,1.2135969,3289.7,3289.3,3.04013]
[1722380563397,1.5911978,3289.5,3289.2,5.47835]
[1722380563600,1.5911978,3289.5,3289.2,2.4381]
[1722380563913,1.5911978,3289.5,3289.3,3.04015]
[1722380564212,1.5911978,3289.6,3289.3,3.04015]
[1722380564417,1.5911978,3289.6,3289.3,3.04009]
[1722380564770,2.8047947,3289.7,3289.3,3.04009]
[1722380565207,2.8047947,3289.7,3289.4,3.04006]
[1722380565529,1.5911978,3289.6,3289.4,3.04006]
[1722380565678,2.8047947,3289.7,3289.4,3.04006]
[1722380566123,1.7367947,3289.7,3289.5,3.03997]
[1722380566566,1.73645325,3289.7,3289.5,3.03997]
[1722380567379,1.73645325,3289.7,3289.2,6.066126]
[1722380567548,1.73645325,3289.7,3289.4,3.04001]
[1722380568247,1.59085635,3289.6,3289.5,2.4354]
[1722380568454,0.1455969,3289.7,3289.6,8.51516]
[1722380568770,0.1455969,3289.7,3289.6,11.51516]
[1722380569274,0.1455969,3289.7,3289.6,8.47528]
[1722380569435,0.1455969,3289.7,3289.6,11.51516]
[1722380570040,0.1455969,3289.7,3289.6,5.48441288]
[1722380570240,0.1455969,3289.7,3289.6,3.04901288]
[1722380570679,0.1455969,3289.7,3289.4,3.03999]
[1722380571088,0.1455969,3289.7,3289.5,3.03997]
[1722380571295,0.1455969,3289.7,3289.5,3.0399]
[1722380571697,0.1455969,3289.7,3289.5,6.07981]
[1722380572045,0.1455969,3289.7,3289.5,3.0399]
[1722380572472,0.1455969,3289.7,3289.6,3.03988]
[1722380572659,0.1455969,3289.7,3289.6,3.647858]
[1722380572859,0.1455969,3289.7,3289.6,3.03988]
[1722380573145,4.10743,3290.1,3289.6,3.03988]
[1722380573463,1.59093415,3290.0,3289.6,3.03988]
[1722380574191,1.59093415,3290.0,3289.5,3.03997]
[1722380574343,1.59093415,3289.9,3289.5,3.03997]
[1722380574549,1.59093415,3289.9,3289.6,0.303997]
[1722380575253,1.59093415,3289.9,3289.6,3.343867]
[1722380576555,1.59145998,3289.9,3289.6,3.343867]
[1722380576754,1.59145998,3289.9,3289.6,0.303997]
[1722380577202,1.59145998,3289.9,3289.5,3.03994]
[1722380577349,1.59145998,3289.8,3289.5,3.03994]
[1722380577754,2.65945998,3289.9,3289.5,3.03994]
[1722380578069,1.59145998,3289.8,3289.5,3.03991]
[1722380578271,2.65945998,3289.9,3289.6,3.03987]
[1722380578593,1.59145998,3289.9,3289.6,3.647848]
[1722380578893,1.59145998,3290.0,3289.8,2.4172]
[1722380579259,1.59145998,3289.9,3289.8,2.4172]
[1722380579595,1.59145998,3289.9,3289.8,5.45689]
[1722380579795,1.59230134,3289.9,3289.8,6.3673528]
[1722380582118,1.59270916,3289.9,3289.8,6.3673528]
[1722380582290,1.91125099,3290.1,3289.8,3.3276628]
[1722380582615,1.91125099,3290.1,3289.5,5.41682]
[1722380582616,1.068,3290.0,3289.5,5.41682]
[1722380582825,1.59283296,3289.7,3289.5,5.41682]
[1722380583109,1.59283296,3289.8,3289.6,3.03988]
[1722380583315,1.59283296,3289.7,3289.6,3.03988]
[1722380583518,1.59283296,3289.8,3289.6,3.03988]
[1722380584076,1.59283296,3289.7,3289.6,3.03988]
[1722380585079,1.59283296,3289.8,3289.7,3.03979]
[1722380585421,1.59370931,3289.8,3289.7,3.03979]
[1722380585633,1.59370931,3289.8,3289.7,3.9700223]
[1722380586814,1.91245117,3290.1,3289.8,5.51579]
[1722380588018,1.91245117,3290.1,3289.9,3.03953]
[1722380588217,1.91245117,3290.3,3290.0,3.03945]
[1722380588521,8.458,3290.5,3290.0,3.03945]
[1722380588743,8.458,3290.5,3289.9,3.03953]
[1722380588744,1.91292116,3290.3,3289.9,3.03954]
[1722380588949,1.59405877,3290.1,3290.0,3.591074]
[1722380589100,1.91292116,3290.3,3290.1,2.3724]
[1722380589296,1.91292116,3290.3,3290.1,5.41178]
[1722380590850,1.91292116,3290.3,3290.1,5.41176]
[1722380591959,8.458,3290.5,3290.2,3.03924]
[1722380592241,1.91296584,3290.3,3290.2,3.03924]
[1722380592549,1.91296584,3290.4,3290.2,3.03924]
[1722380592847,1.91296584,3290.3,3290.2,3.03924]
[1722380593146,1.91296584,3290.4,3290.2,3.03924]
[1722380594203,1.91296584,3290.3,3290.0,3.590984]
[1722380594406,1.91296584,3290.2,3289.9,5.38768]
[1722380594600,1.91296584,3290.2,3289.9,5.38765]
[1722380594804,1.91296584,3290.2,3289.9,5.38764]
[1722380595121,1.91296584,3290.2,3290.0,3.03948]
[1722380595532,1.068,3290.3,3290.0,3.03948]
[1722380595705,1.91312884,3290.2,3290.0,3.03948]
[1722380597063,1.91312884,3290.2,3290.1,3.03942]
[1722380597275,1.91328376,3290.3,3290.1,3.03942]
[1722380597415,1.068,3290.5,3290.1,3.03942]
[1722380597416,1.91328376,3290.4,3290.1,3.03942]
[1722380597621,2.98128376,3290.3,3289.9,2.926864]
[1722380597823,1.91328376,3290.2,3289.9,2.3481]
[1722380598263,1.068,3290.3,3289.9,5.3877]
[1722380598432,1.91351755,3290.2,3289.9,5.3877]
[1722380599059,1.91351755,3290.2,3289.9,3.0396]
[1722380599947,1.91351755,3290.2,3290.0,3.0395]
[1722380600346,1.91351755,3290.2,3290.0,3.70741]
[1722380600518,5.27149714,3290.5,3290.0,6.06431]
[1722380600519,1.91351755,3290.3,3290.0,6.06431]
[1722380600718,1.91351755,3290.2,3290.0,5.3964]
[1722380601128,1.91351755,3290.3,3290.0,5.3964]
[1722380601458,1.91351755,3290.3,3290.1,0.2]
[1722380601755,1.91390148,3290.3,3290.1,0.2]
[1722380601961,1.91390148,3290.2,3290.1,0.2]
[1722380602147,7.14664,3290.2,3290.1,0.2]
[1722380602351,12.31772921,3290.2,3290.1,0.2]
[1722380602659,10.08484415,3290.2,3290.1,0.2]
[1722380605448,10.08484415,3290.2,3290.1,0.4]
[1722380605964,13.12416415,3290.2,3290.1,0.4]
[1722380606168,16.12416415,3290.2,3290.1,0.4]
[1722380609188,11.41474,3290.2,3290.1,0.4]
[1722380609388,15.12206382,3290.2,3290.1,0.4]
[1722380609906,15.12201376,3290.2,3290.1,0.4]
[1722380610084,12.48274,3290.2,3290.1,0.4]
[1722380611107,10.14664,3290.2,3290.1,0.4]
[1722380612417,12.78633688,3290.2,3290.1,0.4]
[1722380612605,11.72916065,3290.2,3290.1,0.4]
[1722380613320,12.78633856,3290.2,3290.1,0.4]
[1722380614607,10.14664,3290.2,3290.1,0.4]
[1722380614816,12.78646634,3290.2,3290.1,0.4]
[1722380615021,10.14664,3290.2,3290.1,0.4]
[1722380615195,12.78645849,3290.2,3290.1,0.4]
[1722380617525,10.14664,3290.2,3290.1,0.4]
[1722380618024,12.78618507,3290.2,3290.1,0.4]
[1722380618180,10.14664,3290.2,3290.1,0.4]
[1722380619077,12.7862781,3290.2,3290.1,0.4]
[1722380619383,10.14664,3290.2,3290.1,0.4]
[1722380619584,12.7862781,3290.2,3290.1,0.4]
[1722380620287,10.14664,3290.2,3290.1,0.4]
[1722380620506,12.7862781,3290.2,3290.1,0.4]
[1722380621085,10.14664,3290.2,3290.1,0.4]
[1722380621282,12.78609899,3290.2,3290.1,0.4]
[1722380621953,10.14664,3290.2,3290.1,0.4]
[1722380622085,12.78609899,3290.2,3290.1,0.4]
[1722380624441,10.14664,3290.2,3290.1,0.4]
[1722380624637,12.78585363,3290.2,3290.1,0.4]
[1722380625268,10.14664,3290.2,3290.1,0.4]
[1722380625475,12.78585363,3290.2,3290.1,0.4]
[1722380625773,10.14664,3290.2,3290.1,0.4]
[1722380626441,12.78585363,3290.2,3290.1,0.4]
[1722380627862,12.78584872,3290.2,3290.1,0.4]
[1722380628260,12.78584807,3290.2,3290.1,0.4]
[1722380629072,10.14664,3290.2,3290.1,0.4]
[1722380629792,7.10732,3290.2,3290.1,0.4]
[1722380630630,9.74652807,3290.2,3290.1,0.4]
[1722380631177,9.74645734,3290.2,3290.1,0.4]
[1722380631381,7.10732,3290.2,3290.1,0.4]
[1722380631534,9.74643451,3290.2,3290.1,0.4]
[1722380632337,6.03932,3290.2,3290.1,0.4]
[1722380632554,3.03932,3290.2,3290.1,0.4]
[1722380633088,5.27336132,3290.2,3290.1,0.4]
[1722380633433,5.27336132,3290.2,3290.1,2.7702]
[1722380634137,3.03932,3290.2,3290.1,2.7702]
[1722380635255,1.068,3290.3,3290.1,2.7702]
[1722380635441,4.10728,3290.3,3290.1,2.3702]
[1722380635644,4.10728,3290.3,3290.1,2.5702]
[1722380636271,3.03932,3290.2,3290.1,2.5702]
[1722380639481,1.068,3290.3,3290.1,2.5702]
[1722380639839,2.63973581,3290.4,3290.1,2.82722]
[1722380640041,2.23503651,3290.2,3290.1,2.82722]
[1722380640343,1.068,3290.6,3290.1,6.06664]
[1722380640344,2.23503651,3290.4,3290.1,6.06664]
[1722380640547,2.23503651,3290.4,3290.2,0.910609]
[1722380640792,2.23503651,3290.4,3290.1,0.4]
[1722380640793,6.34222651,3290.4,3290.1,0.4]
[1722380640951,4.10732,3290.2,3290.1,0.4]
[1722380641156,1.068,3290.2,3290.1,0.4]
[1722380641624,4.10732,3290.2,3290.1,0.4]
[1722380642794,6.7477899,3290.2,3290.1,0.4]
[1722380643423,4.10732,3290.2,3290.1,0.4]
[1722380643952,4.10732,3290.2,3290.1,0.6]
[1722380644639,6.74857078,3290.2,3290.1,0.6]
[1722380645735,4.10732,3290.2,3290.1,0.6]
[1722380646410,1.068,3290.2,3290.1,3.0119]
[1722380646747,6.74925131,3290.2,3290.1,3.0119]
[1722380647045,4.10732,3290.2,3290.1,3.0119]
[1722380647865,4.10732,3290.2,3290.1,3.2119]
[1722380651975,4.10732,3290.2,3290.1,3.4119]
[1722380654473,1.068,3290.2,3290.1,3.4119]
[1722380654787,3.03914,3290.4,3290.1,3.75309]
[1722380654788,3.7101356,3290.4,3290.1,3.75309]
[1722380655092,3.7101356,3290.4,3290.1,3.4119]
[1722380655681,3.03924,3290.3,3290.1,3.4119]
[1722380657685,2.23648762,3290.2,3290.1,3.4119]
[1722380658449,2.23648762,3290.4,3290.1,4.38061]
[1722380658774,2.23648762,3290.4,3290.2,5.33382]
[1722380659176,2.23648762,3290.4,3290.3,3.03923]
[1722380659379,2.23648762,3290.5,3290.4,2.3576]
[1722380659586,11.49668,3290.9,3290.4,5.936432]
[1722380659896,2.23581846,3290.6,3290.4,5.39674]
[1722380661671,2.23581846,3290.6,3290.4,2.3576]
[1722380662489,2.23581846,3290.7,3290.4,2.3576]
[1722380662860,4.10668,3290.9,3290.4,5.39672]
[1722380663061,2.23454736,3290.7,3290.4,5.39672]
[1722380663292,2.23454736,3290.7,3290.4,3.201196]
[1722380663595,1.91497878,3290.5,3290.4,6.240336]
[1722380663803,3.30254736,3290.8,3290.4,6.240336]
[1722380663804,2.23454736,3290.6,3290.4,3.201196]
[1722380663959,2.23454736,3290.7,3290.4,2.3576]
[1722380664376,2.23454736,3290.7,3290.4,5.39672]
[1722380664694,1.91477738,3290.5,3290.4,5.39672]
[1722380664856,1.914781,3290.5,3290.4,5.39672]
[1722380665055,1.914781,3290.5,3290.4,6.240323]
[1722380666388,1.91450937,3290.5,3290.4,6.240323]
[1722380666552,1.068,3290.8,3290.4,6.240323]
[1722380666757,1.91423598,3290.6,3290.4,6.240283]
[1722380667491,1.91423598,3290.6,3290.5,0.6240283]
[1722380667693,1.91423598,3290.6,3290.5,3.6630783]
[1722380668262,1.91423598,3290.7,3290.6,3.03895]
[1722380668497,1.91423598,3290.8,3290.6,5.38305]
[1722380668705,1.91423598,3290.9,3290.6,5.38305]
[1722380668871,1.91423598,3290.8,3290.6,3.186309]
[1722380669278,1.068,3290.9,3290.6,6.225249]
[1722380669620,1.9137263,3290.8,3290.6,3.186309]
[1722380669822,1.068,3290.7,3290.1,6.38348]
[1722380670003,1.91362093,3290.4,3290.1,3.3441]
[1722380670164,1.91362093,3290.4,3290.1,6.3835]
[1722380670892,1.91362093,3290.3,3290.1,3.3441]
[1722380671068,1.91362093,3290.4,3290.2,0.33441]
[1722380671984,2.98162093,3290.5,3290.2,3.37373]
[1722380672591,1.068,3290.5,3290.2,0.33441]
[1722380672791,1.91365775,3290.3,3290.2,0.33441]
[1722380672982,1.91365775,3290.4,3290.2,0.33441]
[1722380673177,1.91365775,3290.4,3290.3,0.671787]
[1722380675993,1.91391428,3290.4,3290.3,0.671787]
[1722380677218,1.068,3290.5,3290.3,0.671787]
[1722380677421,1.91400881,3290.4,3290.3,0.671787]
[1722380677987,1.91400881,3290.5,3290.3,0.671787]
[1722380678193,1.91400881,3290.5,3290.4,0.4045487]
[1722380678415,1.91400881,3290.5,3290.4,2.8054487]
[1722380678578,1.91400881,3290.5,3290.4,5.8445887]
[1722380678782,1.91400881,3290.7,3290.5,3.03905]
[1722380678979,1.91400881,3290.6,3290.5,5.32055]
[1722380679211,1.91389977,3290.7,3290.5,6.26415257]
[1722380679655,1.068,3290.9,3290.5,6.26415257]
[1722380679815,1.91378282,3290.7,3290.5,6.26415257]
[1722380680630,1.91378282,3290.7,3290.5,3.22510257]
[1722380680961,1.91378282,3290.6,3290.5,5.32055]
[1722380681126,2.98178282,3290.7,3290.5,5.32055]
[1722380681736,1.91378282,3290.7,3290.5,5.32055]
[1722380682450,1.068,3290.9,3290.5,5.32055]
[1722380682651,1.91361127,3290.7,3290.5,5.32055]
[1722380682958,1.91361127,3290.7,3290.6,0.87641887]
[1722380683515,3.30054648,3290.9,3290.5,2.2815]
[1722380683752,3.03877,3290.8,3290.5,2.2815]
[1722380683959,1.91367555,3290.6,3290.5,2.2815]
[1722380685781,4.10687,3290.7,3290.4,0.4045487]
[1722380685943,4.10687,3290.7,3290.3,2.5866]
[1722380685944,1.91385723,3290.6,3290.3,2.5866]
[1722380686271,1.91385723,3290.6,3290.3,2.7866]
[1722380686473,1.91385723,3290.5,3290.3,2.7866]
[1722380686635,1.91385723,3290.6,3290.3,3.369191]
[1722380687525,1.91385723,3290.5,3290.3,3.369191]
[1722380687970,1.91385723,3290.4,3290.3,3.369191]
[1722380688376,1.91385723,3290.5,3290.3,3.369191]
[1722380689246,1.91385723,3290.5,3290.4,0.6408501]
[1722380691277,1.91385723,3290.5,3290.3,0.6]
[1722380691483,4.10705,3290.5,3290.3,0.6]
[1722380691781,3.03914,3290.4,3290.3,0.6]
[1722380692579,6.07828,3290.4,3290.3,0.6]
[1722380695251,8.71734205,3290.4,3290.3,0.6]
[1722380695758,6.07828,3290.4,3290.3,0.6]
[1722380696075,9.11742,3290.4,3290.3,0.6]
[1722380696274,8.7173513,3290.4,3290.3,0.6]
[1722380696580,6.07828,3290.4,3290.3,0.6]
[1722380697480,8.7173513,3290.4,3290.3,0.6]
[1722380697687,8.7173513,3290.4,3288.1,0.3048]
[1722380697688,3.86748643,3290.4,3288.1,0.3048]
[1722380697986,1.59600236,3288.9,3288.6,2.2874]
[1722380698280,1.59600236,3288.8,3288.6,5.32819]
[1722380698753,1.59600236,3288.8,3288.6,2.2874]
[1722380698952,1.59551646,3288.7,3288.6,2.2874]
[1722380699262,1.59551646,3288.8,3288.6,2.820231]
[1722380699463,1.59551646,3288.7,3288.3,2.4761]
[1722380699671,1.59551646,3288.6,3288.0,5.51741]
[1722380700035,1.59551646,3288.5,3288.2,3.04115]
[1722380700237,1.59551646,3288.5,3288.3,0.304115]
[1722380701134,3.04095,3288.5,3288.0,2.4761]
[1722380701335,1.59493595,3288.3,3288.0,2.4761]
[1722380701537,1.59493595,3288.2,3288.0,2.4761]
[1722380701762,1.068,3288.2,3288.0,2.4761]
[1722380702007,1.59493595,3288.2,3288.0,2.4761]
[1722380702226,1.59493595,3288.3,3288.0,2.4761]
[1722380702505,5.70392595,3288.4,3288.0,2.4761]
[1722380702913,2.66293595,3288.4,3288.0,3.332008]
[1722380703097,4.60371033,3289.0,3288.4,3.04099]
[1722380703098,1.59493595,3288.5,3288.4,3.04099]
[1722380703267,1.59493595,3288.7,3288.2,3.04116]
[1722380703466,4.63561595,3288.8,3288.0,5.51741]
[1722380703667,5.70366595,3288.7,3288.0,6.373301]
[1722380703889,2.66293595,3288.7,3288.3,3.04107]
[1722380704064,1.068,3288.7,3288.3,3.04107]
[1722380704274,1.068,3288.7,3288.2,3.04111]
[1722380704573,1.068,3288.7,3288.3,3.04101]
[1722380706713,5.31358,3289.4,3288.3,3.04101]
[1722380706714,4.63047353,3289.3,3288.6,3.0408]
[1722380706917,5.69853353,3289.2,3288.6,3.0408]
[1722380707413,3.04035,3289.1,3288.6,3.0408]
[1722380707571,2.65828353,3289.2,3288.6,3.0408]
[1722380707771,1.068,3289.2,3288.6,3.876174]
[1722380708003,5.69858353,3289.2,3288.6,3.876174]
[1722380708185,5.69858353,3289.2,3288.5,2.272]
[1722380708186,1.068,3289.0,3288.5,2.272]
[1722380708575,4.10849,3289.0,3288.5,2.272]
[1722380708878,4.10863,3288.8,3288.2,5.40501]
[1722380709079,4.10863,3288.8,3288.2,2.3639]
[1722380709080,3.04072,3288.7,3288.2,2.3639]
[1722380709295,1.068,3288.6,3288.2,3.04116]
[1722380709497,1.068,3288.6,3288.2,3.51006052]
[1722380711735,1.068,3288.6,3288.2,3.51001052]
[1722380711943,1.068,3288.8,3288.3,3.04108]
[1722380713243,1.068,3289.0,3288.4,3.04098]
[1722380713390,10.4303,3289.2,3288.7,3.04066]
[1722380713593,11.49826,3289.2,3288.6,3.04072]
[1722380713855,1.068,3289.0,3288.6,3.04072]
[1722380715201,10.43026,3289.2,3288.6,3.04072]
[1722380716788,13.47058,3289.2,3288.6,3.04072]
[1722380717045,10.43026,3289.2,3288.6,3.04072]
[1722380717848,8.97773958,3289.8,3289.0,5.48368]
[1722380718011,3.03998,3289.5,3289.0,2.4433]
[1722380718596,3.03998,3289.5,3289.0,5.48372]
[1722380723257,6.07966,3289.7,3289.0,5.48372]
[1722380723456,3.0399,3289.6,3289.1,3.04033]
[1722380724056,1.58807466,3290.0,3289.7,3.03973]
[1722380724251,7.39,3290.2,3289.8,5.35258]
[1722380724490,7.39,3290.2,3289.9,3.03952]
[1722380725645,3.03942,3290.1,3289.5,3.03991]
[1722380725849,8.97807466,3290.2,3289.5,3.03991]
[1722380726154,8.97807466,3290.2,3289.3,5.53654]
[1722380726155,3.03961,3289.9,3289.3,5.53648]
[1722380726341,3.0397,3289.8,3289.3,2.4964]
[1722380726691,3.0398,3289.7,3289.3,2.4964]
[1722380726846,3.0398,3289.7,3289.1,3.04028]
[1722380727480,3.03998,3289.5,3289.0,2.2875]
[1722380728267,3.80682909,3289.5,3288.8,3.04053]
[1722380728581,1.5887109,3289.4,3288.8,3.04053]
[1722380729350,1.5887109,3289.3,3288.8,3.04053]
[1722380730196,5.41908,3289.5,3288.8,3.04053]
[1722380730197,4.62972111,3289.5,3288.9,3.04046]
[1722380730349,3.04007,3289.4,3288.9,3.04046]
[1722380731379,4.63013013,3289.4,3288.9,3.04046]
[1722380732189,0.07960548,3289.3,3288.9,3.04046]
[1722380732590,1.66966561,3289.3,3288.9,3.04046]
[1722380732888,1.66966561,3289.3,3288.7,5.32819]
[1722380733090,1.59006013,3289.1,3288.6,3.04079]
[1722380733474,1.67051172,3289.0,3288.6,3.04079]
[1722380733796,0.07935139,3289.0,3288.5,3.04084]
[1722380734200,1.67051172,3289.0,3288.5,3.04084]
[1722380734381,1.67051172,3289.0,3288.5,6.08168]
[1722380734587,1.67051172,3289.0,3288.6,3.04079]
[1722380734985,1.67051172,3289.0,3288.4,5.46511]
[1722380735309,1.59116033,3288.9,3288.4,5.46511]
[1722380735625,1.59116033,3288.9,3288.3,3.04104]
[1722380735626,1.59116033,3288.7,3288.3,3.04107]
[1722380735822,1.59116033,3288.7,3288.2,3.04116]
[1722380735979,0.07912488,3288.6,3288.2,0.875037]
[1722380736177,1.67028521,3288.6,3288.2,0.875037]
[1722380736390,0.07912488,3288.6,3288.2,0.875037]
[1722380736939,1.59257302,3288.7,3288.2,0.875037]
[1722380737223,3.04063,3288.8,3288.1,5.70919]
[1722380737224,1.67166444,3288.6,3288.1,5.70919]
[1722380737378,1.67166444,3288.6,3288.1,0.2]
[1722380737721,1.59257302,3288.4,3288.1,0.2]
[1722380738019,1.59257302,3288.2,3288.1,0.2]
[1722380738318,7.22924626,3288.2,3288.1,0.2]
[1722380739178,6.16124626,3288.2,3288.1,0.2]
[1722380739874,0.07890626,3288.2,3288.1,0.2]
[1722380740079,0.07890626,3288.2,3288.1,3.565406]
[1722380740080,1.59305964,3288.2,3288.1,3.565406]
[1722380740308,0.07840124,3288.2,3288.1,3.565406]
[1722380740503,1.59305964,3288.3,3288.1,3.565406]
[1722380740679,0.07840347,3288.2,3288.1,3.565406]
[1722380740881,1.59305964,3288.2,3288.1,3.365406]
[1722380741124,0.07840347,3288.2,3288.1,0.324136]
[1722380741336,1.59305964,3288.2,3288.1,0.324136]
[1722380741475,1.67151888,3288.2,3288.1,0.324136]
[1722380741880,0.07845924,3288.2,3288.1,3.365406]
[1722380742114,1.59305964,3288.3,3288.1,3.365406]
[1722380742286,1.59305964,3288.4,3288.3,3.04108]
[1722380742920,1.59305964,3288.5,3288.1,3.04117]